[Event "41st Amateur D7"]
[Site "ChessGUI4"]
[Date "2013.07.06"]
[Round "12.2"]
[White "Gibbon 2.57a 64-bit"]
[Black "Tigran 2.3 64-bit"]
[Result "0-1"]
[BlackElo "2289"]
[ECO "D45"]
[EventDate "2013.??.??"]
[TimeControl "40/1500:40/1500:40/1500"]
[WhiteElo "2251"]

{ i5 Quad } 1.d4 { [%eval 0,1] [%emt 0:00:00] } 1...d5
{ [%eval 0,1] [%emt 0:00:00] } 2.c4 { [%eval 0,1] [%emt 0:00:00] } 2...c6
{ [%eval 0,1] [%emt 0:00:00] } 3.Nc3 { [%eval 0,1] [%emt 0:00:00] } 3...Nf6
{ [%eval 0,1] [%emt 0:00:00] } 4.Nf3 { [%eval 0, 1] [%emt 0:00:00] } 4...e6
{ [%eval 0,1] [%emt 0:00:00] } 5.e3 { [%eval 0,1] [%emt 0: 00:00] } 5...a6
{ [%eval 0,1] [%emt 0:00:00] } 6.b3 { [%eval 0,1] [%emt 0:00:00] } 6...Bb4
{ [%eval 0,1] [%emt 0:00:00] } 7.Bd2 { [%eval 0,1] [%emt 0:00:00] } 7...Nbd7
{ [%eval 0,1] [%emt 0:00:00] } 8.Bd3 { [%eval 0,1] [%emt 0:00:00] } 8...O-O
{ [%eval 0,1] [%emt 0:00:00] } 9.a3 { [%eval 16,13] [%emt 0:01:49] } 9...Bxc3
{ [%eval -57,13] [%emt 0:00:42] (Ba5) } 10.Bxc3
{ [%eval 22,13] [%emt 0:00:13] (Bxc3) } 10...Ne4
{ [%eval -54,13] [%emt 0:00:42] (dxc4) } 11.Qc2
{ [%eval 33,13] [%emt 0:00:24] (Bb2) } 11...Ndf6
{ [%eval -60,13] [%emt 0:00:42] (Nxc3) } 12.O-O
{ [%eval 36,13] [%emt 0:00:32] } 12...a5
{ [%eval -70,13] [%emt 0:00:35] (Nxc3) } 13.Be1
{ [%eval 64, 13] [%emt 0:01:25] (Rac1) } 13...c5
{ [%eval -73,13] [%emt 0:00:43] (Nd6) } 14.Rd1
{ [%eval 58,12] [%emt 0:00:31] (cxd5) } 14...cxd4
{ [%eval -54,13] [%emt 0:00:36] (cxd4) } 15.Nxd4
{ [%eval 53,12] [%emt 0:00:19] (exd4) } 15...Bd7
{ [%eval -26,13] [%emt 0: 00:43] (Bd7) } 16.cxd5
{ [%eval 52,13] [%emt 0:00:57] (f3) } 16...exd5
{ [%eval -16,13] [%emt 0:00:39] (exd5) } 17.f3
{ [%eval 55,13] [%emt 0:00:27] (Qb1) } 17...Rc8
{ [%eval -12,14] [%emt 0:00:44] (Rc8) } 18.Qb2
{ [%eval 53,13] [%emt 0:00:24] (Qb2) } 18...Nc5
{ [%eval -10,13] [%emt 0:00:44] (Nc5) } 19.Bf2
{ [%eval 53,13] [%emt 0:01:07] (Bb1) } 19...Nxd3
{ [%eval 11,13] [%emt 0:00:44] (Qb6) } 20.Rxd3
{ [%eval 63, 14] [%emt 0:00:09] (Rxd3) } 20...Qe7
{ [%eval 14,13] [%emt 0:00:35] (Qb6) } 21.Bh4
{ [%eval 66,13] [%emt 0:00:26] (b4) } 21...h6
{ [%eval 9,13] [%emt 0:00:45] (Rfe8) } 22.Rb1
{ [%eval 79,13] [%emt 0:00:52] (Rc1) } 22...Rfe8
{ [%eval 9,13] [%emt 0:00:45] (Rfe8) } 23.Qd2
{ [%eval 92,12] [%emt 0:00:13] (Rc1) } 23...b6
{ [%eval -1,13] [%emt 0: 00:45] (Ne4) } 24.b4
{ [%eval 103,13] [%emt 0:00:14] (b4) } 24...a4
{ [%eval 9,13] [%emt 0:00:46] (a4) } 25.Rc1
{ [%eval 90,13] [%emt 0:00:21] (Rd1) } 25...Rc4
{ [%eval 13,14] [%emt 0:00:45] (g5) } 26.Rdc3
{ [%eval 80,12] [%emt 0:00:18] (Rdc3) } 26...b5
{ [%eval 13,13] [%emt 0:00:46] (Rec8) } 27.Bf2
{ [%eval 96,12] [%emt 0:00:19] (R1c2) } 27...Qe5
{ [%eval 13,13] [%emt 0:00:47] (Rec8) } 28.Bg3
{ [%eval 96,13] [%emt 0:00:35] (Bh4) } 28...Qg5
{ [%eval 16,12] [%emt 0:00:47] (Qe7) } 29.Bf4
{ [%eval 86,13] [%emt 0:00:48] (Bf2) } 29...Qg6
{ [%eval 19,14] [%emt 0:00:47] (Qg6) } 30.Bg3
{ [%eval 94,12] [%emt 0:00:32] (Bg3) } 30...Rec8
{ [%eval 16,14] [%emt 0:00:45] (Rec8) } 31.Ne2
{ [%eval 93,12] [%emt 0:00:12] (Bh4) } 31...Qg5
{ [%eval 18,13] [%emt 0:00:42] (Nh5) } 32.Kh1
{ [%eval 94,12] [%emt 0:00:24] (Bf4) } 32...Nh5
{ [%eval 27,12] [%emt 0: 00:48] (Qg6) } 33.Bd6
{ [%eval 100,12] [%emt 0:00:09] (Rxc4) } 33...Kh8
{ [%eval 19,12] [%emt 0:00:51] (Qh4) } 34.Qe1
{ [%eval 100,10] [%emt 0:00:09] (g4) } 34...R8c6
{ [%eval 19,12] [%emt 0:00:51] (Nf6) } 35.Bc5
{ [%eval 100,12] [%emt 0:00:37] (Bc5) } 35...Nf6
{ [%eval 1,12] [%emt 0:00:52] (Nf6) } 36.Kg1
{ [%eval 98,12] [%emt 0: 00:30] (Nf4) } 36...Rc8
{ [%eval 0,12] [%emt 0:00:53] (Rc8) } 37.Nd4
{ [%eval 98,11] [%emt 0:00:14] (Qg3) } 37...Re8
{ [%eval 21,12] [%emt 0:00:55] (Qe5) } 38.Kh1
{ [%eval 98,12] [%emt 0:00:12] (Qd2) } 38...h5
{ [%eval 35,12] [%emt 0:00:56] (Qe5) } 39.Qd2
{ [%eval 86,11] [%emt 0:00:18] (h4) } 39...h4
{ [%eval 39,13] [%emt 0:00:58] (h4) } 40.Ne2
{ [%eval 94,11] [%emt 0:00:19] (Ne2) } 40...h3
{ [%eval 27,13] [%emt 0:01:02] (Kg8) } 41.g3
{ [%eval 92,12] [%emt 0:00:26] (g3) } 41...Kg8
{ [%eval 21,12] [%emt 0: 00:34] (Bg4) } 42.Nf4
{ [%eval 103,12] [%emt 0:00:35] (Nf4) } 42...Be6
{ [%eval 19,12] [%emt 0:00:34] (Rxc3) } 43.Qd1
{ [%eval 110,12] [%emt 0:00:30] (Bd4) } 43...Nh5
{ [%eval 27,12] [%emt 0:00:34] (Qh6) } 44.Ne2
{ [%eval 105,13] [%emt 0:00:48] (Ne2) } 44...Nf6
{ [%eval 0,12] [%emt 0:00:34] (Qg6) } 45.Bd4
{ [%eval 98,12] [%emt 0: 00:36] (Nf4) } 45...Qh6
{ [%eval 23,13] [%emt 0:00:34] (Qh6) } 46.Nf4
{ [%eval 93,12] [%emt 0:01:02] (Nf4) } 46...Rec8
{ [%eval 10,13] [%emt 0:00:34] (g5) } 47.g4
{ [%eval 99,12] [%emt 0:00:41] (g4) } 47...Nh7
{ [%eval 8,12] [%emt 0:00:35] (Nh7) } 48.Kg1
{ [%eval 88,12] [%emt 0:00:32] (Be5) } 48...Ng5
{ [%eval 13,12] [%emt 0:00:34] (Ng5) } 49.Qf1
{ [%eval 81,12] [%emt 0:00:42] (Bc5) } 49...Qh4
{ [%eval 23,12] [%emt 0:00:32] (Rxc3) } 50.Qd1
{ [%eval 75,14] [%emt 0:01:10] (Qd1) } 50...Rxc3
{ [%eval 19,12] [%emt 0:00:35] (Rxc3) } 51.Rxc3
{ [%eval 62,14] [%emt 0:00:10] (Rxc3) } 51...Rc4
{ [%eval -4, 13] [%emt 0:00:35] (Rc4) } 52.Kf1
{ [%eval 74,14] [%emt 0:01:37] (Kf1) } 52...Qh6
{ [%eval 0,13] [%emt 0:00:35] (Qh6) } 53.Kg1
{ [%eval 56,13] [%emt 0:00:25] (Rd3) } 53...f6
{ [%eval 17,13] [%emt 0:00:29] (Qh4) } 54.Kf1
{ [%eval 49,14] [%emt 0:01:13] (Kh1) } 54...Bf7
{ [%eval 13,14] [%emt 0:00:35] (Bf7) } 55.Kf2
{ [%eval 44,14] [%emt 0: 00:43] (Rd3) } 55...Qh4+
{ [%eval 27,13] [%emt 0:00:29] (Qh4) } 56.Kf1
{ [%eval 31,15] [%emt 0:00:16] (Kf1) } 56...Qh7
{ [%eval 24,13] [%emt 0:00:36] (Qh6) } 57.Rd3
{ [%eval 44,13] [%emt 0:00:25] (Kg1) } 57...Bg6
{ [%eval 56,14] [%emt 0:00:36] (Ne6) } 58.Rc3
{ [%eval 44,14] [%emt 0:00:22] (Nxg6) } 58...Bc2
{ [%eval 198,15] [%emt 0:00: 36] (Bf7) } 59.Qe2
{ [%eval -217,14] [%emt 0:00:51] (Qe2) } 59...Bb3
{ [%eval 224,14] [%emt 0:00:36] (Bb3) } 60.Kf2
{ [%eval -238,13] [%emt 0:00:40] (Kf2) } 60...Qb1
{ [%eval 267,14] [%emt 0:00:36] (Qb1) } 61.Qf1
{ [%eval -234,12] [%emt 0:00:32] (Rxc4) } 61...Qxf1+
{ [%eval 258,14] [%emt 0:00:28] (Qxf1) } 62.Kxf1
{ [%eval -244,15] [%emt 0:00:06] (Kxf1) } 62...Rxc3
{ [%eval 261,17] [%emt 0:00:37] (Nxf3) } 63.Bxc3
{ [%eval -223,18] [%emt 0:00:16] (Bxc3) } 63...Nxf3
{ [%eval 279,17] [%emt 0:00:37] (Nxf3) } 64.Nxh3
{ [%eval -223,18] [%emt 0:00:24] (Nxh3) } 64...Nxh2+
{ [%eval 282,17] [%emt 0:00:37] (Nxh2) } 65.Ke2
{ [%eval -228,19] [%emt 0:00:35] (Ke2) } 65...Nxg4
{ [%eval 289,17] [%emt 0:00:32] (Bc4) } 66.Ng1
{ [%eval -235,17] [%emt 0:00:14] (Nf2) } 66...Kf7
{ [%eval 296,16] [%emt 0:00:38] (Kf7) } 67.Nf3
{ [%eval -241,18] [%emt 0:00:17] (Nh3) } 67...Bc4+
{ [%eval 326,19] [%emt 0:00:38] (Bc4) } 68.Kd2
{ [%eval -266,18] [%emt 0:00:17] (Kd2) } 68...g5
{ [%eval 329,19] [%emt 0:00:39] (g5) } 69.Nd4
{ [%eval -281,19] [%emt 0:00:36] (Nd4) } 69...Nf2
{ [%eval 337,19] [%emt 0:00: 34] (Kg6) } 70.Ke1
{ [%eval -241,16] [%emt 0:00:14] (Kc1) } 70...Ne4
{ [%eval 376,20] [%emt 0:00:37] (Ne4) } 71.Bb2
{ [%eval -343,19] [%emt 0:00:18] (Bb2) } 71...g4
{ [%eval 378,21] [%emt 0:00:34] (g4) } 72.Ba1
{ [%eval -363,20] [%emt 0:00:26] (Ne2) } 72...g3
{ [%eval 409,19] [%emt 0:00:36] (g3) } 73.Nf3
{ [%eval -394,20] [%emt 0:00:17] (Nf3) } 73...g2
{ [%eval 403,18] [%emt 0:00:43] (Kg6) } 74.Bd4
{ [%eval -394, 18] [%emt 0:00:29] (Bd4) } 74...Ke7
{ [%eval 386,17] [%emt 0:00:43] (Bf1) } 75.Ba7
{ [%eval -355,18] [%emt 0:00:13] (Ba7) } 75...Ng5
{ [%eval 386,18] [%emt 0:00:44] (Ke6) } 76.Ng1
{ [%eval -394,20] [%emt 0:00:27] (Ng1) } 76...Ke6
{ [%eval 391,18] [%emt 0:00: 45] (Ke6) } 77.Kf2
{ [%eval -428,20] [%emt 0:00:27] (Bb8) } 77...Bf1
{ [%eval 398,18] [%emt 0:00:46] (Bf1) } 78.Bd4
{ [%eval -426,19] [%emt 0:00:17] (Bd4) } 78...Ne4+
{ [%eval 397,17] [%emt 0:00:47] (Ne4) } 79.Ke1
{ [%eval -466,20] [%emt 0:00:13] (Kf3) } 79...Nd6
{ [%eval 424,18] [%emt 0:00:49] (Nd6) } 80.Nf3
{ [%eval -488,19] [%emt 0:00:14] (Nh3) } 80...Nc4
{ [%eval 516,19] [%emt 0:00:49] (Nc4) } 81.Kf2
{ [%eval -508,20] [%emt 0:01:44] (Kf2) } 81...Nxa3
{ [%eval 525,18] [%emt 0:00:34] (Nxa3) } 82.Ne1
{ [%eval -558,20] [%emt 0:02:13] (Ne1) } 82...Kf5
{ [%eval 566,18] [%emt 0:00:34] (13) } 83.Kg1
{ [%eval -648,19] [%emt 0:00:55] (Nxg2) } 83...Nc4
{ [%eval 654,18] [%emt 0:00:27] (Kg4) } 0-1

[Event "41st Amateur D7"]
[Site "ChessGUI4"]
[Date "2013.07.06"]
[Round "12.3"]
[White "Waxman 2011"]
[Black "FireFly 2.6.0 64-bit"]
[Result "0-1"]
[BlackElo "2258"]
[ECO "B12"]
[EventDate "2013.??.??"]
[TimeControl "40/1500:40/1500:40/1500"]
[WhiteElo "2256"]

{ i5 Quad } 1.e4 { [%eval 0,1] [%emt 0:00:00] } 1...c6
{ [%eval 0,1] [%emt 0:00:00] } 2.d4 { [%eval 0,1] [%emt 0:00:00] } 2...d5
{ [%eval 0,1] [%emt 0:00:00] } 3.e5 { [%eval 0,1] [%emt 0:00:00] } 3...Bf5
{ [%eval 0,1] [%emt 0:00:00] } 4.Be3 { [%eval 0,1] [%emt 0:00:00] } 4...e6
{ [%eval 0,1] [%emt 0:00:00] } 5.Nd2 { [%eval 0,1] [%emt 0:00: 00] } 5...Qb6
{ [%eval 0,1] [%emt 0:00:00] } 6.Nb3 { [%eval 0,1] [%emt 0:00:00] } 6...Nd7
{ [%eval 0,1] [%emt 0:00:00] } 7.Be2 { [%eval 0,1] [%emt 0:00:00] } 7...a5
{ [%eval 0,1] [%emt 0:00:00] } 8.a4 { [%eval 0,1] [%emt 0:00:00] } 8...Ne7
{ [%eval 0,1] [%emt 0:00: 00] } 9.Nf3 { [%eval 29,12] [%emt 0:00:52] }
9...Bg6 { [%eval -96,11] [%emt 0:00:57] (Bg4) } 10.Bg5
{ [%eval 26,12] [%emt 0:00:47] (O-O) } 10...c5
{ [%eval -58,11] [%emt 0: 00:56] (Nf5) } 11.dxc5
{ [%eval 34,12] [%emt 0:00:44] (dxc5) } 11...Nxc5
{ [%eval -56, 12] [%emt 0:00:56] (Nxc5) } 12.Nxc5
{ [%eval 5,12] [%emt 0:00:44] (Nxc5) } 12...Qxc5
{ [%eval -42,11] [%emt 0:00:55] (Qxc5) } 13.Bb5+
{ [%eval 6,12] [%emt 0:00:41] (c3) } 13...Nc6
{ [%eval -53,11] [%emt 0:00:54] (Nc6) } 14.Qd2
{ [%eval -12,12] [%emt 0:00:41] (O-O) } 14...Qb6
{ [%eval -20,12] [%emt 0:00:53] (Qb6) } 15.O-O
{ [%eval -19, 12] [%emt 0:00:50] (Be3) } 15...Bc5
{ [%eval 9,11] [%emt 0:00:52] (Bc5) } 16.Be3
{ [%eval -14,12] [%emt 0:00:51] (Bf4) } 16...Bxe3
{ [%eval 48,12] [%emt 0:00:52] (Bxe3) } 17.Qxe3
{ [%eval -23,13] [%emt 0:00:37] (Qxe3) } 17...Qxe3
{ [%eval 77,13] [%emt 0:00: 42] (Qxe3) } 18.fxe3
{ [%eval -25,12] [%emt 0:00:16] (fxe3) } 18...O-O
{ [%eval 66,12] [%emt 0:00:42] (O-O) } 19.Rf2
{ [%eval -20,13] [%emt 0:00:27] } 19...Rfc8
{ [%eval 53, 12] [%emt 0:00:41] (Nb4) } 20.Raf1
{ [%eval -37,14] [%emt 0:00:35] (c3) } 20...Nb4
{ [%eval 60,12] [%emt 0:00:41] (Rc7) } 21.c3
{ [%eval -38,14] [%emt 0:00:36] (c3) } 21...Nd3
{ [%eval 62,13] [%emt 0:00:41] (Nd3) } 22.Bxd3
{ [%eval -38,14] [%emt 0:00: 36] (Rd2) } 22...Bxd3
{ [%eval 50,12] [%emt 0:00:40] (Bxd3) } 23.Rd1
{ [%eval -27,15] [%emt 0:00:36] (Ra1) } 23...Bg6
{ [%eval 38,12] [%emt 0:00:40] (Bg6) } 24.Rd4
{ [%eval -34,14] [%emt 0:00:38] (Nd4) } 24...Rab8
{ [%eval 44,12] [%emt 0:00:39] (b6) } 25.h3
{ [%eval -51,14] [%emt 0:00:39] (Nd2) } 25...b5
{ [%eval 72,12] [%emt 0:00:39] (b5) } 26.axb5
{ [%eval -63,14] [%emt 0:00:43] (g4) } 26...Rxb5
{ [%eval 88,12] [%emt 0:00:31] (Rxb5) } 27.g3
{ [%eval -65,14] [%emt 0:00:43] (g4) } 27...Rcb8
{ [%eval 106, 12] [%emt 0:00:31] (Rcb8) } 28.Rdd2
{ [%eval -66,15] [%emt 0:00:38] (Rdd2) } 28...Rb3
{ [%eval 92,12] [%emt 0:00:31] (a4) } 29.Nd4
{ [%eval -68,15] [%emt 0:00:47] (g4) } 29...R3b6
{ [%eval 91,12] [%emt 0:00:31] (R3b7) } 30.h4
{ [%eval -85,14] [%emt 0:00: 50] (g4) } 30...h5
{ [%eval 118,12] [%emt 0:00:31] (a4) } 31.Kh2
{ [%eval -89,14] [%emt 0:00:43] (Nf3) } 31...a4
{ [%eval 120,12] [%emt 0:00:31] (a4) } 32.Kh3
{ [%eval -106,14] [%emt 0:00:51] (Nf3) } 32...Ra6
{ [%eval 150,12] [%emt 0:00:31] (Ra6) } 33.Ne2
{ [%eval -111,15] [%emt 0:01:09] (Rf4) } 33...Bf5+
{ [%eval 153,12] [%emt 0:00:31] (Bf5) } 34.Kg2
{ [%eval -139,15] [%emt 0:00:34] (Kg2) } 34...a3
{ [%eval 144,13] [%emt 0:00:31] (a3) } 35.bxa3
{ [%eval -139,16] [%emt 0:01:05] (bxa3) } 35...Rxa3
{ [%eval 149,12] [%emt 0:00:31] (Rxa3) } 36.Rf1
{ [%eval -146,16] [%emt 0:01:18] (Rf1) } 36...Rba8
{ [%eval 148,11] [%emt 0:00:31] (Bg4) } 37.Kf2
{ [%eval -124,16] [%emt 0:00: 50] (Rxf5) } 37...Ra2
{ [%eval 159,14] [%emt 0:00:31] (Ra2) } 38.Rfd1
{ [%eval -128,16] [%emt 0:00:33] (Rfd1) } 38...Bg4
{ [%eval 165,14] [%emt 0:00:31] (Bg4) } 39.Ke1
{ [%eval -124,15] [%emt 0:00:23] (Nc1) } 39...Kh7
{ [%eval 174,15] [%emt 0:00:31] (R2a4) } 40.Rxa2
{ [%eval -126,16] [%emt 0:00:17] (Rxa2) } 40...Rxa2
{ [%eval 175,16] [%emt 0:00:31] (Rxa2) } 41.Rd2
{ [%eval -131,17] [%emt 0:00:27] (Rd2) } 41...Ra3
{ [%eval 171,15] [%emt 0:00:36] (Ra1) } 42.Rc2
{ [%eval -119,16] [%emt 0:00:23] (Rb2) } 42...Kg6
{ [%eval 177,14] [%emt 0:00:36] (Kg6) } 43.Nd4
{ [%eval -127,17] [%emt 0:00: 30] (Nd4) } 43...Bf5
{ [%eval 170,15] [%emt 0:00:36] (Ra1) } 44.Nxf5
{ [%eval -123,16] [%emt 0:00:25] (Rf2) } 44...Kxf5
{ [%eval 238,15] [%emt 0:00:36] (Kxf5) } 45.Rf2+
{ [%eval -133,17] [%emt 0:00:24] (Kd2) } 45...Ke4
{ [%eval 258,15] [%emt 0:00:36] (Ke4) } 46.Rxf7
{ [%eval -150,16] [%emt 0:00:09] (Rxf7) } 46...Rxc3
{ [%eval 258,16] [%emt 0: 00:36] (Kxe3) } 47.Kd2
{ [%eval -166,18] [%emt 0:00:29] (Re7) } 47...Rd3+
{ [%eval 291, 16] [%emt 0:00:36] (Rd3) } 48.Kc1
{ [%eval -173,18] [%emt 0:00:27] (Kc2) } 48...g5
{ [%eval 331,15] [%emt 0:00:36] (Rxe3) } 49.hxg5
{ [%eval -105,17] [%emt 0:01:17] (hxg5) } 49...Rxe3
{ [%eval 342,16] [%emt 0:00:36] (Rxe3) } 50.g4
{ [%eval -214,18] [%emt 0:00:56] (g4) } 50...hxg4
{ [%eval 324,16] [%emt 0:00:36] (h4) } 51.g6
{ [%eval -164,18] [%emt 0:00:41] (g6) } 51...Rc3+
{ [%eval 419,16] [%emt 0:00:46] (Rc3) } 52.Kd2
{ [%eval -260,19] [%emt 0:00:35] (Kd2) } 52...Rc8
{ [%eval 385,16] [%emt 0:00:22] (Rc8) } 53.Rf6
{ [%eval -262,19] [%emt 0:00:47] (Rf6) } 53...Kxe5
{ [%eval 402,16] [%emt 0:00:23] (Kxe5) } 54.Rf7
{ [%eval -274,19] [%emt 0:00:27] (Rf7) } 54...Rg8
{ [%eval 471,16] [%emt 0:00:23] (Rg8) } 55.g7
{ [%eval -374,19] [%emt 0:00:36] (g7) } 55...Ke4
{ [%eval 454,16] [%emt 0:00:23] (Ke4) } 56.Ke2
{ [%eval -405,20] [%emt 0:00:49] (Ke2) } 56...d4
{ [%eval 531,15] [%emt 0:00:23] (d4) } 57.Rd7
{ [%eval -405, 19] [%emt 0:00:48] (Kf2) } 57...g3
{ [%eval 626,17] [%emt 0:00:24] (e5) } 58.Kf1
{ [%eval -483,20] [%emt 0:00:29] (Kf1) } 58...d3
{ [%eval 625,16] [%emt 0:00:24] (d3) } 59.Kg2
{ [%eval -572,20] [%emt 0:01:21] (Rd6) } 59...e5
{ [%eval 627,16] [%emt 0:00: 24] (Rxg7) } 60.Kxg3
{ [%eval -571,19] [%emt 0:00:14] (Kxg3) } 60...Ke3
{ [%eval 755, 17] [%emt 0:00:45] (Ke3) } 0-1

[Event "41st Amateur D7"]
[Site "ChessGUI4"]
[Date "2013.07.06"]
[Round "12.4"]
[White "ProChess 1.02AD"]
[Black "ChessKiss 1.7 64-bit"]
[Result "1-0"]
[BlackElo "2214"]
[ECO "C67"]
[EventDate "2013.??.??"]
[TimeControl "40/1500:40/1500:40/1500"]
[WhiteElo "2244"]

{ i5 Quad } 1.e4 { [%eval 0,1] [%emt 0:00:00] } 1...e5
{ [%eval 0,1] [%emt 0:00:00] } 2.Nf3 { [%eval 0,1] [%emt 0:00:00] } 2...Nc6
{ [%eval 0,1] [%emt 0:00:00] } 3.Bb5 { [%eval 0,1] [%emt 0:00:00] } 3...Nf6
{ [%eval 0,1] [%emt 0:00:00] } 4.O-O { [%eval 0, 1] [%emt 0:00:00] } 4...Nxe4
{ [%eval 0,1] [%emt 0:00:00] } 5.d4 { [%eval 0,1] [%emt 0:00:00] } 5...Nd6
{ [%eval 0,1] [%emt 0:00:00] } 6.Bxc6 { [%eval 0,1] [%emt 0:00:00] } 6...dxc6
{ [%eval 0,1] [%emt 0:00:00] } 7.dxe5 { [%eval 0,1] [%emt 0:00:00] } 7...Nf5
{ [%eval 0,1] [%emt 0:00:00] } 8.Qxd8+ { [%eval 0,1] [%emt 0:00:00] }
8...Kxd8 { [%eval 0,1] [%emt 0:00:00] } 9.Rd1+
{ [%eval 29,12] [%emt 0:01:21] } 9...Ke8
{ [%eval -73,14] [%emt 0:00:43] (Ke8) } 10.Nc3
{ [%eval 29,13] [%emt 0:01:09] (Nc3) } 10...Be6
{ [%eval -70,13] [%emt 0:00:41] (Bb4) } 11.Ng5
{ [%eval 27,13] [%emt 0:01:22] (Ne4) } 11...Rd8
{ [%eval -59,13] [%emt 0:00:40] (Bc5) } 12.Rxd8+
{ [%eval 31, 14] [%emt 0:00:42] (Rxd8) } 12...Kxd8
{ [%eval -64,15] [%emt 0:00:40] (Kxd8) } 13.Nxe6+
{ [%eval 33,14] [%emt 0:01:05] (g4) } 13...fxe6
{ [%eval -57,15] [%emt 0:00:38] (fxe6) } 14.Bf4
{ [%eval 31,13] [%emt 0:00:43] (Bg5) } 14...Be7
{ [%eval -42,15] [%emt 0:00:37] (Bc5) } 15.Rd1+
{ [%eval 32,13] [%emt 0:00:37] (Rd1) } 15...Kc8
{ [%eval -41, 15] [%emt 0:00:35] (Ke8) } 16.Ne4
{ [%eval 33,13] [%emt 0:00:53] (Ne4) } 16...h6
{ [%eval -27,14] [%emt 0:00:32] (c5) } 17.f3
{ [%eval 33,13] [%emt 0:01:02] (Kf1) } 17...Rd8
{ [%eval -31,13] [%emt 0:00:29] (g5) } 18.Rxd8+
{ [%eval 35,14] [%emt 0:00: 31] (Rxd8) } 18...Kxd8
{ [%eval -45,16] [%emt 0:00:33] (Kxd8) } 19.Kf2
{ [%eval 37,14] [%emt 0:00:23] (Kf2) } 19...b6
{ [%eval -45,15] [%emt 0:00:29] (c5) } 20.g4
{ [%eval 51,15] [%emt 0:00:38] (c3) } 20...Bh4+
{ [%eval -58,15] [%emt 0:00:25] (Bh4) } 21.Bg3
{ [%eval 47,15] [%emt 0:00:25] (Bg3) } 21...Nxg3
{ [%eval -72,18] [%emt 0:00:31] (Bxg3) } 22.hxg3
{ [%eval 55,16] [%emt 0:00:27] (hxg3) } 22...Be7
{ [%eval -75,17] [%emt 0: 00:29] (Be7) } 23.Ke3
{ [%eval 58,15] [%emt 0:00:35] (f4) } 23...Ke8
{ [%eval -75,15] [%emt 0:00:29] (c5) } 24.f4
{ [%eval 57,14] [%emt 0:00:24] (c4) } 24...a6
{ [%eval -80, 16] [%emt 0:00:26] (c5) } 25.a4
{ [%eval 57,14] [%emt 0:00:24] (f5) } 25...a5
{ [%eval -86,15] [%emt 0:00:21] (Kd7) } 26.c4
{ [%eval 60,14] [%emt 0:00:28] (f5) } 26...Kf8
{ [%eval -112,15] [%emt 0:00:26] (c5) } 27.c5
{ [%eval 72,16] [%emt 0:00:37] (f5) } 27...Bd8
{ [%eval -102,15] [%emt 0:00:25] (Kf7) } 28.Kd4
{ [%eval 72,15] [%emt 0:00:28] (f5) } 28...Ke8
{ [%eval -113,16] [%emt 0:00:25] (Ke8) } 29.f5
{ [%eval 72,15] [%emt 0:00:49] (f5) } 29...Bg5
{ [%eval -141,17] [%emt 0:00:24] (Ke7) } 30.Nxg5
{ [%eval 75,16] [%emt 0:00:20] (cxb6) } 30...hxg5
{ [%eval -287,19] [%emt 0:00:22] (hxg5) } 31.Kc4
{ [%eval 70,18] [%emt 0:00:35] (Kc4) } 31...Kf7
{ [%eval -304,18] [%emt 0:00:23] (Kf7) } 32.b4
{ [%eval 140,19] [%emt 0:01:26] (b4) } 32...axb4
{ [%eval -368,18] [%emt 0:00:22] (axb4) } 33.Kxb4
{ [%eval 140,18] [%emt 0:00:14] (Kxb4) } 33...Ke7
{ [%eval -751,21] [%emt 0:00:21] (Ke7) } 34.a5
{ [%eval 260,20] [%emt 0:00:20] (a5) } 34...bxa5+
{ [%eval -874,23] [%emt 0:00:21] (bxa5) } 35.Kxa5
{ [%eval 774,21] [%emt 0:00:10] (Kxa5) } 35...Ke8
{ [%eval -1029,24] [%emt 0:00:18] (Kd7) } 36.Ka6
{ [%eval 824,22] [%emt 0:03:18] (Ka6) } 36...Ke7
{ [%eval -1048,20] [%emt 0:00:11] (Ke7) } 37.Kb7
{ [%eval 840,22] [%emt 0:00:09] (Ka7) } 37...Kd7
{ [%eval -1058,21] [%emt 0:00:19] (Kd7) } 38.Kb8
{ [%eval 865,22] [%emt 0:00:39] (Kb8) } 1-0